Workbook

Sheet 作成手順
B1: 「化学物質含有規制適合保証書（複数形式）」の作成手順は下記の通りです。

Sheet 保証書(様式)
V2: 年 | X2: 月 | AB2: 日
M4: 化学物質含有規制適合保証書（Rev.16L01）
L7: 宛
I9: 会社名 ：
I10: 部署名 ：
I11: 責任者名 ：
C16: 当社は、貴社に納入する対象物品（第１項）について、ＰＦＵグループ基準（第２項）に適合していることを保証します。
C17: なお、当社が対象物品の成分変更を行う場合でも引き続き、上記内容を保証します。
L20: － 記 －
B22: １．対象物品
I25: 別紙の対象物品リスト［対象物品リストNo. | U25: ] に記載の物品
B28: 2．ＰＦＵグループ基準
C30: 含有規制化学物質（群） | J30: 基準値 | T30: 備考
C31: (1) 鉛および鉛化合物 | J31: 均質材料(*)の質量における鉛含有率が1000ｐｐｍを超えない | T31: 含有禁止対象から除外となる用途は【別紙 対象物品リスト】の「含有禁止対象から除外となる用途」に記載
C32: (2) 水銀および水銀化合物 | J32: 均質材料(*)の質量における水銀含有率が1000ｐｐｍを超えない
C33: (3) カドミウムおよびカドミウム化合物 | J33: 均質材料(*)の質量におけるカドミウム含有率が 100ｐｐｍを超えない
C34: (4) 六価クロム化合物 | J34: 均質材料(*)の質量におけるクロム含有率が1000ｐｐｍを超えない
C35: (5) ポリ臭化ビフェニル類 (ＰＢB類) | J35: 均質材料(*)の質量における含有率が1000ｐｐｍを超えない
C36: (6) ポリ臭化ジフェニルエーテル類 (ＰＢＤＥ類) | J36: 均質材料(*)の質量における含有率が1000ｐｐｍを超えない
C37: (7) フタル酸ビス（2-エチルヘキシル） (DEHP) | J37: 均質材料(*)の質量における含有率が1000ｐｐｍを超えない
C38: (8) フタル酸ブチルベンジル (BBP) | J38: 均質材料(*)の質量における含有率が1000ｐｐｍを超えない
C39: (9) フタル酸ジ－ｎ－ブチル (DBP) | J39: 均質材料(*)の質量における含有率が1000ｐｐｍを超えない
C40: (10) フタル酸ジイソブチル (DIBP) | J40: 均質材料(*)の質量における含有率が1000ｐｐｍを超えない
B42: ３．備考
B50: ４．担当者
C52: 部署名
C53: 担当者名
C54: 電話番号
C55: e-mail
B61: 別表．含有禁止対象から除外となる用途選択リスト （英文を正式とする。）
B63: 下表は、欧州連合の官報から引用しています。これ以外は官報を参照してください。
B64: 項番 | D64: 含有禁止対象から除外となる用途 （英文を正式とする） | W64: Ｐｂ | X64: Ｈｇ | AA64: Ｃｄ
B65: 3(a) | D65: 冷陰極蛍光灯と外部電極蛍光灯(CCFLとEEFL)に含まれる以下のものを越えない水銀(ランプ1個当たり) | X65: ●
D66: ・短型(500mm以下), 3.5mg
D67: Mercury in cold cathode fluorescent lamps and external electrode fluorescent lamps (CCFL and EEFL) for special purposes not exceeding (per lamp):
D68: - Short length ( ≤ 500 mm): 3,5 mg may be used per lamp
B69: 3(b) | D69: 冷陰極蛍光灯と外部電極蛍光灯(CCFLとEEFL)に含まれる以下のものを越えない水銀(ランプ1個当たり) | X69: ●
D70: ・中型(500mm超1500mm以下), 5mg
D71: Mercury in cold cathode fluorescent lamps and external electrode fluorescent lamps (CCFL and EEFL) for special purposes not exceeding (per lamp):
D72: - Medium length ( > 500 mm and ≤ 1500 mm): 5 mg may be used per lamp
B73: 3(c) | D73: 冷陰極蛍光灯と外部電極蛍光灯(CCFLとEEFL)に含まれる以下のものを越えない水銀(ランプ1個当たり) | X73: ●
D74: ・長型(1500mm超), 13mg
D75: Mercury in cold cathode fluorescent lamps and external electrode fluorescent lamps (CCFL and EEFL) for special purposes not exceeding (per lamp):
D76: - Long length ( > 1,500 mm): 13 mg may be used per lamp
B77: 5(b) | D77: 蛍光管のガラス中の鉛, 0.2wt%以下 | W77: ●
D78: Lead in glass of fluorescent tubes not exceeding 0,2 % by weight
B79: 6(a)-I | D79: 合金成分として、機械加工用の鋼材に含まれる0.35wt%までの鉛、及びバッチ式溶融亜鉛めっき鋼品中に含まれる0.2wt%までの鉛 | W79: ●
D80: Lead as an alloying element in steel for machining purposes containing up to 0,35 % lead by weight
D81: and in batch hot dip galvanised steel components containing up to 0,2 % lead by weight
B82: 6(b)-I | D82: 鉛を含有するアルミ廃材のリサイクルに由来する場合、合金成分としてアルミ材に含まれる0.4wt%までの鉛 | W82: ●
D83: Lead as an alloying element in aluminium containing up to 0,4 % lead by weight, provided it stems from lead-bearing aluminium scrap recycling
B84: 6(b)-II | D84: 合金成分として機械加工用のアルミ材に含まれる0.4wt%までの鉛 | W84: ●
D85: Lead as an alloying element in aluminium for machining purposes with a lead content up to 0,4 % by weight
B86: 6(c) | D86: 銅合金に含まれる4wt%までの鉛 | W86: ●
D87: Copper alloy containing up to 4 % lead by weight
B88: 7(a) | D88: 高融点ハンダに含まれる鉛（すなわち鉛含有率が重量で85％以上の鉛ベースの合金） | W88: ●
D89: Lead in high melting temperature type solders (i.e. lead-based alloys containing 85 % by weight or more lead)
B90: 7(c)-I | D90: キャパシタ中の誘電セラミックを除くガラスあるいはセラミック中の電気電子部品に含む鉛、 | W90: ●
D91: 例えばピエゾデバイス、ガラスあるいはセラミックマトリックス化合物
D92: Electrical and electronic components containing lead in a glass or ceramic other than dielectric ceramic in capacitors,
D93: e.g. piezoelectronic devices, or in a glass or ceramic matrix compound
B94: 7(c)-II | D94: AC125VあるいはDC250V以上の電圧用のキャパシタ中の誘電セラミックに含まれる鉛 | W94: ●
D95: Lead in dielectric ceramic in capacitors for a rated voltage of 125 V AC or 250 V DC or higher
B96: 8(b)-I | D96: 以下で使用される電気接点中のカドミウムとその化合物 ・サーキットブレーカー ・熱感知制御 ・サーマルモータープロテクター(密閉型サーマルモータープロテクターを除く) ・下記定格のACスイッチ: - AC250V以上において6A以上または - AC125V以上において12A以上 ・18V DC以上において20A以上の定格のDCスイッチ ・200Hz以上の電圧源周波数において使用するスイッチ | AA96: ●
D97: Cadmium and its compounds in electrical contacts used in: - circuit breakers, - thermal sensing controls, - thermal motor protectors (excluding hermetic thermal motor protectors), - AC switches rated at: - 6 A and more at 250 V AC and more, or - 12 A and more at 125 V AC and more, - DC switches rated at 20 A and more at 18 V DC and more, and - switches for use at voltage supply frequency ≥ 200 Hz.
B98: 13(a) | D98: 光学機器に使われる白ガラスに含まれる鉛 | W98: ●
D99: Lead in white glasses used for optical applications
B100: 13(b)-(I) | D100: イオン着色された光学フィルタガラスタイプ中の鉛 | W100: ●
D101: Lead in ion coloured optical filter glass types
B102: 13(b)-(II) | D102: 付属書の除外39(*)に該当する用途を除く、ストライキング光学フィルタガラスタイプ中のカドミウム * 除外番号39(本規定で未使用の除外)：イルミネーションまたはディスプレイ・システム用途の色変換Ⅱ-Ⅵ族化合物半導体LED (発光領域mm2 あたりのカドミウム＜10μg)に含まれるカドミウム。 | AA102: ●
D103: Cadmium in striking optical filter glass types; excluding applications falling under point 39 of this Annex * Exclusion number 39 (Excluded unused in this regulation): Cadmium included in color conversion II - VI compound semiconductor LED (cadmiumper mm2 of light emitting area <10 μg) for illumination or display system applications.
B104: 13(b)-(III) | D104: 反射率標準に使用されるフィルタガラスまたはガラス中のカドミウム及び鉛 | W104: ● | AA104: ●
D105: Cadmium and Lead in glazes used for reflectance standards
B106: 15(a) | D106: 下記基準の少なくとも一つが当てはまる場合の集積回路パッケージ(フリップチップ)の内部半導体ダイ およびキャリア間における確実な電気接続に必要なはんだに含まれる鉛 ・90ナノメートル半導体テクノロジーノード以上の大きさ ・いかなる半導体テクノロジーノードにおいても単一ダイサイズが300mm2以上 ・300mm2以上のダイまたは300mm2以上のシリコンのインターポーザーを有するスタック型ダイパッケージ | W106: ●
D107: Lead in solders to complete a viable electrical connection between the semiconductor die and carrier within integrated circuit flip chip packages where at least one of the following criteria applies: - a semiconductor technology node of 90 nm or larger; - a single die of 300 mm2 or larger in any semiconductor technology node; - stacked die packages with die of 300 mm2 or larger, or silicon interposers of 300 mm2 or larger.
B108: 34 | D108: サーメット（陶性合金）を主構成要素とするトリマー電位差計構成部品中の鉛 | W108: ●
D109: Lead in cermet-based trimmer potentiometer elements
AB110: form Rev.16L01
B111: ※「均質材料」とは、機械的に別々の材料に分離できない材料を意味する。
B112: 「均質」という言葉は、「組成全体が均一」として理解されるので、 「均質材料」の例として、プラスチック、セラミック、ガラス、金属、合金、紙、ボード、樹脂、コーティングなどがある。
B113: 「機械的に分離」という言葉は、原則として、ねじの取り外し、切断、粉砕、研削、研磨のプロセスといった機械的行為によって材料が分離されることを意味する。

Sheet 保証書(記載方法)
S2: 2019 | V2: 年 | W2: 4 | X2: 月 | Z2: 16 | AB2: 日
M4: 化学物質含有規制適合保証書（Rev.16L01）
C7: 株式会社ＰＦＵ | L7: 宛
I9: 会社名 ： | K9: ○○○○株式会社
I10: 部署名 ： | K10: 品質保証部
I11: 責任者名 ： | K11: 品質保証部長 ○○ ○○
C16: 当社は、貴社に納入する対象物品（第１項）について、ＰＦＵグループ基準（第２項）に適合していることを保証します。
C17: なお、当社が対象物品の成分変更を行う場合でも引き続き、上記内容を保証します。
L20: － 記 －
B22: １．対象物品
I25: 別紙の対象物品リスト［対象物品リストNo. | J25: LIST-20190001 | U25: ] に記載の物品
B28: 2．ＰＦＵグループ基準
C30: 含有規制化学物質（群） | J30: 基準値 | T30: 備考
C31: (1) 鉛および鉛化合物 | J31: 均質材料(*)の質量における鉛含有率が1000ｐｐｍを超えない | T31: 含有禁止対象から除外となる用途は【別紙 対象物品リスト】の「含有禁止対象から除外となる用途」に記載
C32: (2) 水銀および水銀化合物 | J32: 均質材料(*)の質量における水銀含有率が1000ｐｐｍを超えない
C33: (3) カドミウムおよびカドミウム化合物 | J33: 均質材料(*)の質量におけるカドミウム含有率が 100ｐｐｍを超えない
C34: (4) 六価クロム化合物 | J34: 均質材料(*)の質量におけるクロム含有率が1000ｐｐｍを超えない
C35: (5) ポリ臭化ビフェニル類 (ＰＢB類) | J35: 均質材料(*)の質量における含有率が1000ｐｐｍを超えない
C36: (6) ポリ臭化ジフェニルエーテル類 (ＰＢＤＥ類) | J36: 均質材料(*)の質量における含有率が1000ｐｐｍを超えない
C37: (7) フタル酸ビス（2-エチルヘキシル） (DEHP) | J37: 均質材料(*)の質量における含有率が1000ｐｐｍを超えない
C38: (8) フタル酸ブチルベンジル (BBP) | J38: 均質材料(*)の質量における含有率が1000ｐｐｍを超えない
C39: (9) フタル酸ジ－ｎ－ブチル (DBP) | J39: 均質材料(*)の質量における含有率が1000ｐｐｍを超えない
C40: (10) フタル酸ジイソブチル (DIBP) | J40: 均質材料(*)の質量における含有率が1000ｐｐｍを超えない
B42: ３．備考
B50: ４．担当者
C52: 部署名 | E52: 品質保証部
C53: 担当者名 | E53: ○○ ○○
C54: 電話番号 | E54: ***-***-****
C55: e-mail | E55: ****@*****.*****.**.**
B61: 別表．含有禁止対象から除外となる用途選択リスト （英文を正式とする。）
B63: 下表は、欧州連合の官報から引用しています。これ以外は官報を参照してください。
B64: 項番 | D64: 含有禁止対象から除外となる用途 （英文を正式とする） | W64: Ｐｂ | X64: Ｈｇ | AA64: Ｃｄ
B65: 3(a) | D65: 冷陰極蛍光灯と外部電極蛍光灯(CCFLとEEFL)に含まれる以下のものを越えない水銀(ランプ1個当たり) | X65: ●
D66: ・短型(500mm以下), 3.5mg
D67: Mercury in cold cathode fluorescent lamps and external electrode fluorescent lamps (CCFL and EEFL) for special purposes not exceeding (per lamp):
D68: - Short length ( ≤ 500 mm): 3,5 mg may be used per lamp
B69: 3(b) | D69: 冷陰極蛍光灯と外部電極蛍光灯(CCFLとEEFL)に含まれる以下のものを越えない水銀(ランプ1個当たり) | X69: ●
D70: ・中型(500mm超1500mm以下), 5mg
D71: Mercury in cold cathode fluorescent lamps and external electrode fluorescent lamps (CCFL and EEFL) for special purposes not exceeding (per lamp):
D72: - Medium length ( > 500 mm and ≤ 1500 mm): 5 mg may be used per lamp
B73: 3(c) | D73: 冷陰極蛍光灯と外部電極蛍光灯(CCFLとEEFL)に含まれる以下のものを越えない水銀(ランプ1個当たり) | X73: ●
D74: ・長型(1500mm超), 13mg
D75: Mercury in cold cathode fluorescent lamps and external electrode fluorescent lamps (CCFL and EEFL) for special purposes not exceeding (per lamp):
D76: - Long length ( > 1,500 mm): 13 mg may be used per lamp
B77: 5(b) | D77: 蛍光管のガラス中の鉛, 0.2wt%以下 | W77: ●
D78: Lead in glass of fluorescent tubes not exceeding 0,2 % by weight
B79: 6(a)-I | D79: 合金成分として、機械加工用の鋼材に含まれる0.35wt%までの鉛、及びバッチ式溶融亜鉛めっき鋼品中に含まれる0.2wt%までの鉛 | W79: ●
D80: Lead as an alloying element in steel for machining purposes containing up to 0,35 % lead by weight
D81: and in batch hot dip galvanised steel components containing up to 0,2 % lead by weight
B82: 6(b)-I | D82: 鉛を含有するアルミ廃材のリサイクルに由来する場合、合金成分としてアルミ材に含まれる0.4wt%までの鉛 | W82: ●
D83: Lead as an alloying element in aluminium containing up to 0,4 % lead by weight, provided it stems from lead-bearing aluminium scrap recycling
B84: 6(b)-II | D84: 合金成分として機械加工用のアルミ材に含まれる0.4wt%までの鉛 | W84: ●
D85: Lead as an alloying element in aluminium for machining purposes with a lead content up to 0,4 % by weight
B86: 6(c) | D86: 銅合金に含まれる4wt%までの鉛 | W86: ●
D87: Copper alloy containing up to 4 % lead by weight
B88: 7(a) | D88: 高融点ハンダに含まれる鉛（すなわち鉛含有率が重量で85％以上の鉛ベースの合金） | W88: ●
D89: Lead in high melting temperature type solders (i.e. lead-based alloys containing 85 % by weight or more lead)
B90: 7(c)-I | D90: キャパシタ中の誘電セラミックを除くガラスあるいはセラミック中の電気電子部品に含む鉛、 | W90: ●
D91: 例えばピエゾデバイス、ガラスあるいはセラミックマトリックス化合物
D92: Electrical and electronic components containing lead in a glass or ceramic other than dielectric ceramic in capacitors,
D93: e.g. piezoelectronic devices, or in a glass or ceramic matrix compound
B94: 7(c)-II | D94: AC125VあるいはDC250V以上の電圧用のキャパシタ中の誘電セラミックに含まれる鉛 | W94: ●
D95: Lead in dielectric ceramic in capacitors for a rated voltage of 125 V AC or 250 V DC or higher
B96: 8(b)-I | D96: 以下で使用される電気接点中のカドミウムとその化合物 ・サーキットブレーカー ・熱感知制御 ・サーマルモータープロテクター(密閉型サーマルモータープロテクターを除く) ・下記定格のACスイッチ: - AC250V以上において6A以上または - AC125V以上において12A以上 ・18V DC以上において20A以上の定格のDCスイッチ ・200Hz以上の電圧源周波数において使用するスイッチ | AA96: ●
D97: Cadmium and its compounds in electrical contacts used in: - circuit breakers, - thermal sensing controls, - thermal motor protectors (excluding hermetic thermal motor protectors), - AC switches rated at: - 6 A and more at 250 V AC and more, or - 12 A and more at 125 V AC and more, - DC switches rated at 20 A and more at 18 V DC and more, and - switches for use at voltage supply frequency ≥ 200 Hz.
B98: 13(a) | D98: 光学機器に使われる白ガラスに含まれる鉛 | W98: ●
D99: Lead in white glasses used for optical applications
B100: 13(b)-(I) | D100: イオン着色された光学フィルタガラスタイプ中の鉛 | W100: ●
D101: Lead in ion coloured optical filter glass types
B102: 13(b)-(II) | D102: 付属書の除外39(*)に該当する用途を除く、ストライキング光学フィルタガラスタイプ中のカドミウム * 除外番号39(本規定で未使用の除外)：イルミネーションまたはディスプレイ・システム用途の色変換Ⅱ-Ⅵ族化合物半導体LED (発光領域mm2 あたりのカドミウム＜10μg)に含まれるカドミウム。 | AA102: ●
D103: Cadmium in striking optical filter glass types; excluding applications falling under point 39 of this Annex * Exclusion number 39 (Excluded unused in this regulation): Cadmium included in color conversion II - VI compound semiconductor LED (cadmiumper mm2 of light emitting area <10 μg) for illumination or display system applications.
B104: 13(b)-(III) | D104: 反射率標準に使用されるフィルタガラスまたはガラス中のカドミウム及び鉛 | W104: ● | AA104: ●
D105: Cadmium and Lead in glazes used for reflectance standards
B106: 15(a) | D106: 下記基準の少なくとも一つが当てはまる場合の集積回路パッケージ(フリップチップ)の内部半導体ダイ およびキャリア間における確実な電気接続に必要なはんだに含まれる鉛 ・90ナノメートル半導体テクノロジーノード以上の大きさ ・いかなる半導体テクノロジーノードにおいても単一ダイサイズが300mm2以上 ・300mm2以上のダイまたは300mm2以上のシリコンのインターポーザーを有するスタック型ダイパッケージ | W106: ●
D107: Lead in solders to complete a viable electrical connection between the semiconductor die and carrier within integrated circuit flip chip packages where at least one of the following criteria applies: - a semiconductor technology node of 90 nm or larger; - a single die of 300 mm2 or larger in any semiconductor technology node; - stacked die packages with die of 300 mm2 or larger, or silicon interposers of 300 mm2 or larger.
B108: 34 | D108: サーメット（陶性合金）を主構成要素とするトリマー電位差計構成部品中の鉛 | W108: ●
D109: Lead in cermet-based trimmer potentiometer elements
AB110: form Rev.16L01
B111: ※「均質材料」とは、機械的に別々の材料に分離できない材料を意味する。
B112: 「均質」という言葉は、「組成全体が均一」として理解されるので、 「均質材料」の例として、プラスチック、セラミック、ガラス、金属、合金、紙、ボード、樹脂、コーティングなどがある。
B113: 「機械的に分離」という言葉は、原則として、ねじの取り外し、切断、粉砕、研削、研磨のプロセスといった機械的行為によって材料が分離されることを意味する。

Sheet 対象物品リスト(様式)
J2: 発行日 ： | K2: =IF(ISBLANK('保証書(様式)'!S2),"",'保証書(様式)'!S2) ->  | L2: 年 | M2: =IF(ISBLANK('保証書(様式)'!W2),"",'保証書(様式)'!W2) ->  | N2: 月 | O2: =IF(ISBLANK('保証書(様式)'!Z2),"",'保証書(様式)'!Z2) ->  | P2: 日
H3: 会社名 ： | I3: =IF(ISBLANK('保証書(様式)'!K9),"",'保証書(様式)'!K9) -> 
H4: 部署名 ： | I4: =IF(ISBLANK('保証書(様式)'!K10),"",'保証書(様式)'!K10) -> 
H5: 責任者名： | I5: =IF(ISBLANK('保証書(様式)'!K11),"",'保証書(様式)'!K11) -> 
E7: 化学物質含有規制適合保証書 対象物品リスト（Rev.16L01）
C9: 対象物品リストNo. | E9: =IF(ISBLANK('保証書(様式)'!J25),"",'保証書(様式)'!J25) -> 
B11: No. | C11: 対象物品 | H11: 含有禁止対象から除外となる用途 | I11: 備考
C12: 調査ＩＤ | D12: ＰＦＵグループ 物品番号 | E12: 物品名称 | F12: メーカー型格 [※参考] | G12: メーカー名 [※参考] | H12: ＜入力方法＞ ■入力するセルをダブルクリック → 表示するシート (設定シート)を入力。 ※セルに直接入力することも可能。直接入力に際しては、シート (設定シート)および下記の注意事項を参照。
H13: ＜直接入力時の注意事項＞ ※記入がない場合は「なし」と見なす。 ・半角英数字で記入。 ・複数ある場合は、半角カンマ(,)で区切る。
B14: 1
B15: =B14+1 -> 2
B16: 3
B17: 4
B18: 5
B19: 6
B20: 7
B21: 8
B22: 9
B23: 10
B24: 11
B25: 12
B26: 13
B27: 14
B28: 15
B29: 16
B30: 17
B31: 18
B32: 19
B33: 20
B34: 21
B35: 22
B36: 23
B37: 24
B38: 25
B39: 26
B40: 27
B41: 28
B42: 29
B43: 30
B44: 31
B45: 32
B46: 33
B47: =B46+1 -> 34
B48: 35
B49: 36
B50: 37
B51: 38
B52: 39
B53: 40
B54: 41
B55: 42
B56: 43
B57: 44
B58: 45
B59: 46
B60: 47
B61: 48
B62: 49
B63: 50
B64: 51
B65: 52
B66: 53
B67: 54
B68: 55
B69: 56
B70: 57
B71: 58
B72: 59
B73: 60
B74: 61
B75: 62
B76: 63
B77: 64
B78: 65
B79: =B78+1 -> 66
B80: 67
B81: 68
B82: 69
B83: 70
B84: 71
B85: 72
B86: 73
B87: 74
B88: 75
B89: 76
B90: 77
B91: 78
B92: 79
B93: 80
B94: 81
B95: 82
B96: 83
B97: 84
B98: 85
B99: 86
B100: 87
B101: 88
B102: 89
B103: 90
B104: 91
B105: 92
B106: 93
B107: 94
B108: 95
B109: 96
B110: 97
B111: =B110+1 -> 98
B112: 99
B113: 100
B114: 101
B115: 102
B116: 103
B117: 104
B118: 105
B119: 106
B120: 107
B121: 108
B122: 109
B123: 110
B124: 111
B125: 112
B126: 113
B127: 114
B128: 115
B129: 116
B130: 117
B131: 118
B132: 119
B133: 120
B134: 121
B135: 122
B136: 123
B137: 124
B138: 125
B139: 126
B140: 127
B141: 128
B142: 129
B143: 130
B144: 131
B145: 132
B146: 133
B147: 134
B148: 135
B149: 136
B150: 137
B151: 138
B152: 139
B153: 140
B154: 141
B155: 142
B156: 143
B157: 144
B158: 145
B159: 146
B160: 147
B161: 148
B162: 149
B163: 150
B164: 151
B165: 152
B166: 153
B167: 154
B168: 155
B169: 156
B170: 157
B171: 158
B172: 159
B173: 160
B174: 161
B175: =B174+1 -> 162
B176: 163
B177: 164
B178: 165
B179: 166
B180: 167
B181: 168
B182: 169
B183: 170
B184: 171
B185: 172
B186: 173
B187: 174
B188: 175
B189: 176
B190: 177
B191: 178
B192: 179
B193: 180
B194: 181
B195: 182
B196: 183
B197: 184
B198: 185
B199: 186
B200: 187
B201: 188
B202: 189
B203: 190
B204: 191
... 2809 more rows

Sheet 対象物品リスト(記載方法)
J2: 発行日 ： | K2: =IF(ISBLANK('保証書(記載方法)'!S2),"",'保証書(記載方法)'!S2) -> 2019 | L2: 年 | M2: =IF(ISBLANK('保証書(記載方法)'!W2),"",'保証書(記載方法)'!W2) -> 4 | N2: 月 | O2: =IF(ISBLANK('保証書(記載方法)'!Z2),"",'保証書(記載方法)'!Z2) -> 16 | P2: 日
H3: 会社名 ： | I3: =IF(ISBLANK('保証書(記載方法)'!K9),"",'保証書(記載方法)'!K9) -> ○○○○株式会社
H4: 部署名 ： | I4: =IF(ISBLANK('保証書(記載方法)'!K10),"",'保証書(記載方法)'!K10) -> 品質保証部
H5: 責任者名： | I5: =IF(ISBLANK('保証書(記載方法)'!K11),"",'保証書(記載方法)'!K11) -> 品質保証部長 ○○ ○○
E7: 化学物質含有規制適合保証書 対象物品リスト（Rev.16L01）
C9: 対象物品リストNo. | E9: =IF(ISBLANK('保証書(記載方法)'!J25),"",'保証書(記載方法)'!J25) -> LIST-20190001
B11: No. | C11: 対象物品 | H11: 含有禁止対象から除外となる用途 | I11: 備考
C12: 調査ＩＤ | D12: ＰＦＵグループ 物品番号 | E12: 物品名称 | F12: メーカー型格 [※参考] | G12: メーカー名 [※参考] | H12: ＜入力方法＞ ■入力するセルをダブルクリック → 表示するシート (設定シート)を入力。 ※セルに直接入力することも可能。直接入力に際しては、シート (設定シート)および下記の注意事項を参照。
H13: ＜直接入力時の注意事項＞ ※記入がない場合は「なし」と見なす。 ・半角英数字で記入。 ・複数ある場合は、半角カンマ(,)で区切る。
B14: 1 | C14: -1230001 | D14: PAXXXX1-XXXX | E14: デンゲンユニット | F14: ABC-0121XX | G14: 株式会社△△△ | H14: 7(a),7(c)-I
B15: =B14+1 -> 2 | C15: -1230002 | D15: PAXXXX2-XXXX | E15: グラフィックカード | F15: ABC-0122XX | G15: 株式会社○○○ | H15: 7(a)
B16: 3 | C16: -1230003 | D16: PAXXXX3-XXXX | E16: キーボード | F16: ABC-0123XX | G16: 株式会社××× | H16: なし
B17: 4
B18: 5
B19: 6
B20: 7
B21: 8
B22: 9
B23: 10
